bitfinex/quotes_BTCUSD_20240810
["timestamp","ask_amount","ask_price","bid_price","bid_amount"]
[1723294871744,0.000832,60841.0,60840.0,0.066]
[1723294871944,0.000832,60841.0,60840.0,0.15218693]
[1723294872148,0.000832,60841.0,60840.0,0.29365475]
[1723294872352,0.000832,60841.0,60840.0,0.24247203]
[1723294872803,0.000832,60841.0,60840.0,0.37567613]
[1723294873002,0.000832,60841.0,60840.0,0.16029003]
[1723294873202,0.000832,60841.0,60840.0,0.16357683]
[1723294873653,0.000832,60841.0,60840.0,0.16457683]
[1723294873868,0.000832,60841.0,60840.0,0.24675883]
[1723294874071,0.001832,60841.0,60840.0,0.24675883]
[1723294874810,0.000832,60841.0,60840.0,0.24675883]
[1723294875026,0.000832,60841.0,60840.0,0.16357683]
[1723294875232,0.000832,60841.0,60840.0,0.16029003]
[1723294875427,0.083013,60841.0,60840.0,0.16029003]
[1723294875722,0.247375,60841.0,60840.0,0.16129003]
[1723294876096,0.247375,60841.0,60840.0,0.16229003]
[1723294876535,0.247375,60841.0,60840.0,0.16129003]
[1723294876833,0.247375,60841.0,60840.0,0.16229003]
[1723294877035,0.411737,60841.0,60840.0,0.16229003]
[1723294877237,0.247375,60841.0,60840.0,0.16029003]
[1723294877367,0.253375,60841.0,60840.0,0.16129003]
[1723294878786,0.253375,60841.0,60840.0,0.16429003]
[1723294879156,0.253375,60841.0,60840.0,0.16129003]
[1723294879483,0.257375,60841.0,60840.0,0.16129003]
[1723294881848,0.010832,60841.0,60840.0,0.16129003]
[1723294884620,0.093013,60841.0,60840.0,0.16129003]
[1723294887561,0.257375,60841.0,60840.0,0.16129003]
[1723294887972,0.093013,60841.0,60840.0,0.16129003]
[1723294892131,0.257375,60841.0,60840.0,0.16129003]
[1723294894064,0.421737,60841.0,60840.0,0.16129003]
[1723294894471,0.421737,60841.0,60840.0,0.1499]
[1723294894672,0.421737,60841.0,60840.0,0.16136251]
[1723294897419,0.421737,60841.0,60840.0,0.09536251]
[1723294901075,0.421737,60841.0,60840.0,0.01246251]
[1723294901477,0.421737,60841.0,60840.0,0.001]
[1723294910252,0.421737,60841.0,60840.0,0.081]
[1723294912273,1.44991392,60841.0,60840.0,0.001]
[1723294912561,0.92711392,60841.0,60840.0,0.001]
[1723294914557,0.9761432,60841.0,60840.0,0.001]
[1723294914725,1.0409432,60841.0,60840.0,0.001]
[1723294915694,0.99191392,60841.0,60840.0,0.001]
[1723294916646,0.84991392,60841.0,60840.0,0.001]
[1723294916867,0.68555192,60841.0,60840.0,0.063]
[1723294917068,0.68555192,60841.0,60840.0,0.143]
[1723294917271,0.75920107,60841.0,60840.0,0.143]
[1723294917631,0.59538615,60841.0,60840.0,0.143]
[1723294917843,0.57083872,60841.0,60840.0,0.143]
[1723294918075,0.521737,60841.0,60840.0,0.143]
[1723294918662,0.521737,60841.0,60840.0,0.27763391]
[1723294919150,0.521737,60841.0,60840.0,0.28916881]
[1723294920804,0.521737,60841.0,60840.0,0.28310592]
[1723294921013,0.521737,60841.0,60840.0,0.2831059]
[1723294921393,0.521737,60841.0,60840.0,0.1545349]
[1723294921593,0.521737,60841.0,60840.0,0.28299258]
[1723294921840,0.521737,60841.0,60840.0,0.27145768]
[1723294922047,0.521737,60841.0,60840.0,0.28306513]
[1723294922851,0.521737,60841.0,60840.0,0.28301689]
[1723294923577,0.010832,60841.0,60840.0,0.44379889]
[1723294923906,0.010832,60841.0,60840.0,0.60816389]
[1723294924097,0.010832,60841.0,60840.0,0.60832575]
[1723294925039,0.010832,60841.0,60840.0,0.77269075]
[1723294925889,0.010832,60841.0,60840.0,0.60832575]
[1723294926498,0.010832,60841.0,60840.0,0.36177875]
[1723294926732,0.000832,60841.0,60840.0,0.36077875]
[1723294926965,0.000832,60841.0,60840.0,0.44296075]
[1723294927195,0.001832,60841.0,60840.0,0.45196075]
[1723294927423,0.000832,60841.0,60840.0,0.36377875]
[1723294927659,0.000832,60841.0,60840.0,0.36016763]
[1723294927881,0.001832,60841.0,60840.0,0.37016763]
[1723294928111,0.001832,60841.0,60840.0,0.36616763]
[1723294928337,0.001832,60841.0,60840.0,0.37016763]
[1723294928597,0.000832,60841.0,60840.0,0.36416763]
[1723294928844,0.001832,60841.0,60840.0,0.37017336]
[1723294930045,0.001832,60841.0,60840.0,0.29157336]
[1723294930271,0.084013,60841.0,60840.0,0.29157336]
[1723294930480,0.084013,60841.0,60840.0,0.14957336]
[1723294931033,0.084013,60841.0,60840.0,0.02160745]
[1723294931238,0.084013,60841.0,60840.0,0.1494431]
[1723294931803,0.084013,60841.0,60840.0,0.14941779]
[1723294934737,0.084013,60841.0,60840.0,0.14934983]
[1723294938431,0.084013,60841.0,60840.0,0.14929789]
[1723294939302,0.084013,60841.0,60840.0,0.14925641]
[1723294939719,0.248375,60841.0,60840.0,0.14925641]
[1723294940034,0.248375,60841.0,60840.0,0.02160745]
[1723294940204,0.248375,60841.0,60840.0,0.14926074]
[1723294941080,0.084013,60841.0,60840.0,0.14926074]
[1723294941667,0.084013,60841.0,60840.0,0.22866074]
[1723294942539,0.084013,60841.0,60840.0,0.22929958]
[1723294942762,0.001832,60841.0,60840.0,0.4546686]
[1723294944417,0.001832,60841.0,60840.0,0.45138158]
[1723294944599,0.001832,60841.0,60840.0,0.29059958]
[1723294944742,0.001832,60841.0,60840.0,0.45138158]
[1723294948723,0.001832,60841.0,60840.0,0.32308945]
[1723294948922,0.001832,60841.0,60840.0,0.45139256]
[1723294950528,0.001832,60841.0,60840.0,0.44783271]
[1723294950793,0.001832,60841.0,60840.0,0.45185651]
[1723294952185,0.001832,60841.0,60840.0,0.3235534]
[1723294952365,0.001832,60841.0,60840.0,0.45199977]
[1723294952787,0.001832,60841.0,60840.0,0.45186768]
[1723294954117,0.001832,60841.0,60840.0,0.36968568]
[1723294954323,0.001832,60841.0,60840.0,0.15038568]
[1723294954324,0.227513,60841.0,60840.0,0.15038568]
[1723294954556,0.391875,60841.0,60840.0,0.14636188]
[1723294954757,0.556237,60841.0,60840.0,0.14636188]
[1723294955427,0.556237,60841.0,60840.0,0.13831428]
[1723294955539,0.556237,60841.0,60840.0,0.13431428]
[1723294955981,0.556237,60841.0,60840.0,0.13414527]
[1723294957049,0.561237,60841.0,60840.0,0.12914527]
[1723294957248,0.562237,60841.0,60840.0,0.12914527]
[1723294957481,0.556237,60841.0,60840.0,0.12814527]
[1723294957690,0.562237,60841.0,60840.0,0.12914527]
[1723294957908,0.561237,60841.0,60840.0,0.12914527]
[1723294958109,0.565237,60841.0,60840.0,0.12914527]
[1723294958826,0.565237,60841.0,60840.0,0.12929801]
[1723294959405,0.565237,60841.0,60840.0,0.001]
[1723294959615,0.565237,60841.0,60840.0,0.1292979]
[1723294959941,0.89341392,60841.0,60840.0,0.1292979]
[1723294960149,1.60341392,60841.0,60840.0,0.001]
[1723294960894,0.99341392,60841.0,60840.0,0.001]
[1723294961554,1.04250885,60841.0,60840.0,0.001]
[1723294962003,0.99341392,60841.0,60840.0,0.001]
[1723294962451,1.09160378,60841.0,60840.0,0.001]
[1723294963399,0.99341392,60841.0,60840.0,0.001]
[1723294965336,1.06704408,60841.0,60840.0,0.001]
[1723294969332,0.99341392,60841.0,60840.0,0.001]
[1723294970370,1.83051324,60841.0,60840.0,0.001]
[1723294970568,1.70777592,60841.0,60840.0,0.001]
[1723294970800,1.78381976,60841.0,60840.0,0.001]
[1723294971351,1.77981976,60841.0,60840.0,0.001]
[1723294971527,0.552087,60829.0,60828.0,0.0009141]
[1723294971728,0.98029692,60829.0,60828.0,0.0009141]
[1723294971863,0.98029692,60829.0,60828.0,0.00907449]
[1723294972063,0.98029692,60829.0,60828.0,0.0009141]
[1723294973219,0.99329692,60829.0,60828.0,0.0019141]
[1723294974423,0.99329692,60829.0,60828.0,0.0009141]
[1723294974424,0.99029692,60829.0,60828.0,0.0009141]
[1723294974828,0.99229692,60829.0,60828.0,0.0009141]
[1723294975232,0.98029692,60829.0,60828.0,0.0009141]
[1723294975436,0.99229692,60829.0,60828.0,0.0009141]
[1723294975796,0.98029692,60829.0,60828.0,0.0009141]
[1723294976000,0.99329692,60829.0,60828.0,0.0009141]
[1723294976239,1.00329692,60829.0,60828.0,0.0009141]
[1723294976848,0.99329692,60829.0,60828.0,0.0009141]
[1723294977046,1.00529692,60829.0,60828.0,0.0009141]
[1723294977671,0.98029692,60829.0,60828.0,0.0009141]
[1723294977846,1.00329692,60829.0,60828.0,0.0009141]
[1723294978351,0.99029692,60829.0,60828.0,0.0009141]
[1723294978574,1.00429692,60829.0,60828.0,0.0009141]
[1723294978802,1.01405391,60829.0,60828.0,0.0009141]
[1723294978958,1.00005391,60829.0,60828.0,0.0009141]
[1723294979160,1.01305391,60829.0,60828.0,0.0009141]
[1723294979369,1.00305391,60829.0,60828.0,0.0009141]
[1723294979767,1.01505391,60829.0,60828.0,0.0009141]
[1723294980175,1.00305391,60829.0,60828.0,0.0009141]
[1723294980575,1.01305391,60829.0,60828.0,0.0009141]
[1723294983112,1.74305391,60829.0,60828.0,0.0009141]
[1723294986284,1.90744891,60829.0,60828.0,0.0009141]
[1723294986804,1.9563975,60829.0,60828.0,0.0009141]
[1723294987009,1.90744891,60829.0,60828.0,0.0009141]
[1723294987183,1.95636383,60829.0,60828.0,0.0009141]
[1723294988028,1.95636285,60829.0,60828.0,0.0009141]
[1723294989452,1.90744891,60829.0,60828.0,0.0009141]
[1723294992268,2.07159861,60829.0,60828.0,0.0009141]
[1723294992468,2.14710908,60829.0,60828.0,0.0009141]
[1723294993048,2.15710908,60829.0,60828.0,0.0009141]
[1723294993248,2.18010908,60829.0,60828.0,0.0009141]
[1723294993474,2.01595938,60829.0,60828.0,0.0009141]
[1723294994267,2.18035438,60829.0,60828.0,0.0009141]
[1723294995156,2.01595938,60829.0,60828.0,0.0009141]
[1723294995367,2.03595938,60829.0,60828.0,0.0009141]
[1723294995576,2.2915949,60829.0,60828.0,0.0009141]
[1723294996661,2.2715949,60829.0,60828.0,0.0009141]
[1723294996863,2.2915949,60829.0,60828.0,0.0009141]
[1723294997006,2.2955949,60829.0,60828.0,0.0009141]
[1723294997363,2.65628697,60829.0,60828.0,0.0009141]
[1723294997568,2.66628697,60829.0,60828.0,0.0009141]
[1723294997863,2.68028697,60829.0,60828.0,0.0009141]
[1723294998046,2.51613727,60829.0,60828.0,0.0009141]
[1723294998564,2.41835399,60829.0,60828.0,0.0009141]
[1723294999551,2.40435399,60829.0,60828.0,0.0009141]
[1723294999749,2.41835399,60829.0,60828.0,0.0009141]
[1723295000272,2.40435399,60829.0,60828.0,0.0009141]
[1723295000773,2.41835399,60829.0,60828.0,0.0009141]
[1723295000926,2.34157044,60829.0,60828.0,0.0009141]
[1723295001160,2.4179043,60829.0,60828.0,0.0009141]
[1723295004611,2.41797501,60829.0,60828.0,0.0009141]
[1723295004963,2.34157044,60829.0,60828.0,0.0009141]
[1723295005152,2.41792503,60829.0,60828.0,0.0009141]
[1723295005405,2.5646853,60829.0,60828.0,0.0009141]
[1723295005837,2.41792503,60829.0,60828.0,0.0009141]
[1723295006369,2.41788918,60829.0,60828.0,0.0009141]
[1723295006829,2.58203888,60829.0,60828.0,0.0009141]
[1723295007291,2.72879915,60829.0,60828.0,0.0009141]
[1723295007767,2.56464945,60829.0,60828.0,0.0009141]
[1723295008211,2.41788918,60829.0,60828.0,0.0009141]
[1723295008421,2.56464945,60829.0,60828.0,0.0009141]
[1723295009965,3.85017045,60829.0,60828.0,0.0009141]
[1723295010985,1.24548,60828.0,60827.0,0.21573946]
[1723295011218,5.47497836,60828.0,60827.0,0.09079874]
[1723295011462,5.43016036,60828.0,60827.0,0.06684926]
[1723295011698,5.32214636,60828.0,60827.0,2.6e-07]
[1723295011898,2.79976336,60828.0,60827.0,2.6e-07]
[1723295012303,0.739948,60815.0,60808.0,0.13981]
[1723295012521,1.83926292,60815.0,60808.0,0.13981]
[1723295013141,1.83926292,60815.0,60808.0,0.00011]
[1723295014475,1.69236292,60815.0,60808.0,0.00011]
[1723295014672,1.70636292,60815.0,60808.0,0.00011]
[1723295015300,1.76931461,60815.0,60808.0,0.00011]
[1723295015707,1.76931461,60815.0,60813.0,0.078]
[1723295016159,1.76934225,60815.0,60814.0,0.00908482]
[1723295016373,1.72036292,60815.0,60814.0,0.00908482]
[1723295017702,1.76935371,60815.0,60814.0,0.00908482]
[1723295018104,1.72036292,60815.0,60814.0,0.00908482]
[1723295018473,1.8038956,60815.0,60814.0,0.00908482]
[1723295018869,1.80696923,60815.0,60814.0,0.00908482]
[1723295020261,1.87106923,60815.0,60814.0,0.00908482]
[1723295021192,1.96906058,60815.0,60814.0,0.00908482]
[1723295021534,1.99355841,60815.0,60814.0,0.00908482]
[1723295022316,1.93945841,60815.0,60814.0,0.00908482]
[1723295022521,1.92945841,60815.0,60814.0,0.00908482]
[1723295023066,2.50752893,60815.0,60814.0,8.2e-07]
[1723295023198,2.33545193,60815.0,60814.0,8.2e-07]
[1723295023383,0.914425,60812.0,60808.0,0.00011]
[1723295023586,3.44174455,60812.0,60808.0,0.00011]
[1723295023835,3.19551123,60812.0,60808.0,0.00011]
[1723295024044,3.28084593,60812.0,60808.0,0.00011]
[1723295024468,2.97602323,60812.0,60808.0,0.00011]
[1723295025066,2.09323423,60812.0,60808.0,0.00011]
[1723295025312,3.02666623,60812.0,60808.0,0.00011]
[1723295025532,3.04066623,60812.0,60808.0,0.00011]
[1723295025755,2.96417192,60812.0,60808.0,0.00011]
[1723295026013,2.79354206,60812.0,60808.0,0.00011]
[1723295026242,2.63304002,60812.0,60808.0,0.00011]
[1723295026455,2.55687092,60812.0,60808.0,0.00011]
[1723295026634,2.63312879,60812.0,60808.0,0.00011]
[1723295027459,2.61312879,60812.0,60808.0,0.00011]
[1723295027658,2.40762079,60812.0,60808.0,0.00011]
[1723295027941,1.91027979,60812.0,60808.0,0.00011]
[1723295028151,1.72105679,60812.0,60811.0,0.144]
[1723295028371,1.77665679,60812.0,60811.0,0.144]
[1723295028563,1.69805679,60812.0,60811.0,0.144]
[1723295028765,1.77665679,60812.0,60811.0,0.144]
[1723295029170,1.92680649,60812.0,60811.0,0.144]
[1723295029311,1.91280649,60812.0,60811.0,0.144]
[1723295029875,1.91280649,60812.0,60811.0,0.1449152]
[1723295030052,1.92680649,60812.0,60811.0,0.1449152]
[1723295030284,1.92680649,60812.0,60811.0,0.0795152]
[1723295030848,1.77665679,60812.0,60811.0,0.0795152]
[1723295031288,1.76265679,60812.0,60811.0,0.0795152]
[1723295031535,1.74865679,60812.0,60811.0,0.0795152]
[1723295031713,1.76265679,60812.0,60811.0,0.0795152]
[1723295031919,1.77665679,60812.0,60811.0,0.0795152]
[1723295033208,1.77666517,60812.0,60811.0,0.0795152]
[1723295035452,1.69806517,60812.0,60811.0,0.0795152]
[1723295035659,1.77666517,60812.0,60811.0,0.1449152]
[1723295036101,1.89918135,60812.0,60811.0,0.1449152]
[1723295036304,1.77666517,60812.0,60811.0,0.1449152]
[1723295036791,1.77668859,60812.0,60811.0,0.1449152]
[1723295037212,1.70039892,60812.0,60811.0,0.1449152]
[1723295037358,1.77668846,60812.0,60811.0,0.1449152]
[1723295038473,1.97730413,60812.0,60811.0,0.0010152]
[1723295038661,2.03030413,60812.0,60811.0,0.0010152]
[1723295039076,3.03779013,60812.0,60811.0,0.0010152]
[1723295039309,2.47402546,60812.0,60811.0,0.0010152]
[1723295039769,2.49402546,60812.0,60811.0,0.0010152]
[1723295041136,1.73108846,60812.0,60811.0,0.0795152]
[1723295041459,1.80968846,60812.0,60811.0,0.0010152]
[1723295041805,1.95558846,60812.0,60811.0,0.0010152]
[1723295042008,2.09218846,60812.0,60811.0,0.0010152]
[1723295042231,2.08218846,60812.0,60811.0,0.0010152]
[1723295042628,2.15276246,60812.0,60811.0,0.0010152]
[1723295042841,2.07522912,60812.0,60811.0,0.0010152]
[1723295043047,2.05522912,60812.0,60811.0,0.0010152]
[1723295044749,2.01605512,60812.0,60811.0,0.0010152]
[1723295044969,1.81215512,60812.0,60811.0,0.0010152]
[1723295045168,1.95929198,60812.0,60811.0,0.0010152]
[1723295045375,1.95929198,60812.0,60811.0,0.0833152]
[1723295046074,1.95929859,60812.0,60811.0,0.0833152]
[1723295046272,1.95908827,60812.0,60811.0,0.0833152]
[1723295046725,1.88054239,60812.0,60811.0,0.0833152]
[1723295046928,1.9590433,60812.0,60811.0,0.0833152]
[1723295047148,1.95904845,60812.0,60811.0,0.0833152]
[1723295047652,1.84744845,60812.0,60811.0,0.0833152]
[1723295047856,1.70029983,60812.0,60811.0,0.0833152]
[1723295048031,1.77889983,60812.0,60811.0,0.0833152]
[1723295048998,1.77833112,60812.0,60811.0,0.0833152]
[1723295049954,1.77837011,60812.0,60811.0,0.0833152]
[1723295050163,1.94251981,60812.0,60811.0,0.0010152]
[1723295050458,1.77837011,60812.0,60811.0,0.0010152]
[1723295051450,1.77837011,60812.0,60811.0,0.0833152]
[1723295052838,1.80414333,60812.0,60811.0,0.0833152]
[1723295053501,1.80418722,60812.0,60811.0,0.0833152]
[1723295054360,1.80418722,60812.0,60811.0,0.1483152]
[1723295054361,1.9513958,60812.0,60811.0,0.1483152]
[1723295056367,1.9514827,60812.0,60811.0,0.1483152]
[1723295056766,1.9514827,60812.0,60811.0,0.1333152]
[1723295056879,1.95137482,60812.0,60811.0,0.1333152]
[1723295057333,1.95137486,60812.0,60811.0,0.1333152]
[1723295058354,1.80407938,60812.0,60811.0,0.1333152]
[1723295059785,0.575571,60809.0,60808.0,0.08241]
[1723295059903,1.58589316,60809.0,60808.0,0.08241]
[1723295060103,1.58589316,60809.0,60808.0,0.14741]
[1723295060500,1.58625324,60809.0,60808.0,0.14741]
[1723295060767,1.61202656,60809.0,60808.0,0.14741]
[1723295060994,1.62602656,60809.0,60808.0,0.14741]
[1723295061122,1.64002656,60809.0,60808.0,0.00011]
[1723295061806,1.79047556,60809.0,60808.0,0.00011]
[1723295062200,1.96862526,60809.0,60808.0,0.00011]
[1723295062424,1.94062526,60809.0,60808.0,0.00011]
[1723295062745,1.95462526,60809.0,60808.0,0.00011]
[1723295063086,1.94062526,60809.0,60808.0,0.00011]
[1723295063495,1.95462526,60809.0,60808.0,0.00011]
[1723295063702,1.96862526,60809.0,60808.0,0.00011]
[1723295064266,1.79125286,60809.0,60808.0,0.00011]
[1723295064445,1.82825286,60809.0,60808.0,0.00011]
[1723295065257,1.81425286,60809.0,60808.0,0.00011]
[1723295065439,1.80025286,60809.0,60808.0,0.00011]
[1723295065641,1.81425286,60809.0,60808.0,0.00011]
[1723295066073,1.87270802,60809.0,60808.0,0.00011]
[1723295066376,1.88670802,60809.0,60808.0,0.00011]
[1723295066617,1.88670802,60809.0,60808.0,0.0010252]
[1723295066785,1.81425286,60809.0,60808.0,0.0010252]
[1723295066929,1.80025286,60809.0,60808.0,0.0010252]
[1723295067134,1.81425286,60809.0,60808.0,0.0010252]
[1723295067725,1.82798207,60809.0,60808.0,0.0010252]
[1723295067949,1.85528808,60809.0,60808.0,0.0010252]
[1723295068159,1.77651425,60809.0,60808.0,0.0010252]
[1723295068332,1.85528773,60809.0,60808.0,0.0010252]
[1723295068910,1.85512128,60809.0,60808.0,0.0010252]
[1723295069109,1.80481527,60809.0,60808.0,0.0010252]
[1723295069335,1.80481527,60809.0,60808.0,0.1455252]
[1723295069533,1.95220531,60809.0,60808.0,0.1455252]
[1723295070337,1.80481527,60809.0,60808.0,0.1455252]
[1723295073025,1.80567034,60809.0,60808.0,0.1455252]
[1723295073225,1.80567034,60809.0,60808.0,0.0010252]
[1723295073447,1.86737034,60809.0,60808.0,0.0010252]
[1723295073652,2.03320497,60809.0,60808.0,0.0010252]
[1723295073802,1.80567034,60809.0,60808.0,0.0010252]
[1723295074984,1.72620824,60809.0,60808.0,0.0010252]
[1723295075187,1.8057323,60809.0,60808.0,0.0010252]
[1723295077870,1.8057323,60809.0,60808.0,0.1455252]
[1723295078074,1.5626833,60809.0,60808.0,0.1455252]
[1723295078250,1.6412833,60809.0,60808.0,0.1455252]
[1723295078452,1.64119146,60809.0,60808.0,0.1455252]
[1723295078931,1.56175924,60809.0,60808.0,0.1455252]
[1723295079122,1.64090642,60809.0,60808.0,0.1455252]
[1723295081288,1.65107299,60809.0,60808.0,0.1455252]
[1723295089112,1.57192581,60809.0,60808.0,0.1455252]
[1723295089317,1.65154459,60809.0,60808.0,0.1455252]
[1723295089726,1.65154447,60809.0,60808.0,0.1455252]
[1723295092007,2.01099296,60809.0,60808.0,0.0010252]
[1723295092210,3.02205596,60809.0,60808.0,0.0010252]
[1723295092419,2.42691296,60809.0,60808.0,0.0010252]
[1723295092620,2.29719481,60809.0,60808.0,0.0010252]
[1723295092824,2.35342783,60809.0,60808.0,0.0010252]
[1723295093236,2.35416116,60809.0,60808.0,0.0010252]
[1723295094239,2.25754888,60809.0,60808.0,0.0010252]
[1723295094443,2.23754888,60809.0,60808.0,0.0010252]
[1723295094665,2.40169858,60809.0,60808.0,0.0010252]
[1723295096041,2.15962888,60809.0,60808.0,0.0010252]
[1723295096251,2.03570667,60809.0,60808.0,0.0010252]
[1723295096446,2.04409267,60809.0,60808.0,0.0010252]
[1723295096692,1.93040267,60809.0,60808.0,0.0010252]
[1723295097285,2.13089267,60809.0,60808.0,0.0010252]
[1723295099083,2.04109267,60809.0,60808.0,0.0010252]
[1723295099285,1.98344529,60809.0,60808.0,0.0010252]
[1723295099548,1.65315367,60809.0,60808.0,0.0010252]
[1723295099769,1.57192581,60809.0,60808.0,0.0010252]
[1723295099973,1.81774203,60809.0,60808.0,0.0010252]
[1723295100178,1.73637481,60809.0,60808.0,0.0010252]
[1723295100357,1.65329223,60809.0,60808.0,0.0010252]
[1723295100554,1.81774123,60809.0,60808.0,0.0010252]
[1723295100891,1.89807496,60809.0,60808.0,0.0010252]
[1723295102182,2.06392922,60809.0,60808.0,0.0010252]
[1723295102720,1.97787496,60809.0,60808.0,0.0010252]
[1723295102852,2.33567922,60809.0,60808.0,0.0010252]
[1723295103036,2.16982496,60809.0,60808.0,0.0010252]
[1723295103256,2.33427396,60809.0,60808.0,0.0010252]
[1723295103513,2.14632496,60809.0,60808.0,0.0010252]
[1723295103666,1.81774123,60809.0,60808.0,0.0010252]
[1723295104283,2.24606123,60809.0,60808.0,0.0010252]
[1723295104457,2.25906123,60809.0,60808.0,0.0010252]
[1723295105065,2.37743811,60809.0,60808.0,0.0010252]
[1723295105309,2.43321093,60809.0,60808.0,0.0010252]
[1723295106357,2.26906123,60809.0,60808.0,0.0010252]
[1723295108159,2.27017316,60809.0,60808.0,0.0010252]
[1723295108939,2.29017316,60809.0,60808.0,0.0010252]
[1723295109135,2.2902045,60809.0,60808.0,0.0010252]
[1723295109338,2.39421381,60809.0,60808.0,0.0010252]
[1723295109540,2.60033217,60809.0,60808.0,0.0010252]
[1723295109735,2.76478117,60809.0,60808.0,0.0010252]
[1723295109925,2.60033217,60809.0,60808.0,0.0010252]
[1723295110641,2.68295523,60809.0,60808.0,0.0010252]
[1723295112481,2.60033217,60809.0,60808.0,0.0010252]
[1723295112685,2.68306152,60809.0,60808.0,0.0010252]
[1723295113651,2.84751052,60809.0,60808.0,0.0010252]
[1723295114036,2.71895847,60809.0,60808.0,0.0010252]
[1723295114429,2.88340747,60809.0,60808.0,0.0010252]
[1723295114800,2.71895847,60809.0,60808.0,0.0010252]
[1723295115165,2.88340747,60809.0,60808.0,0.0010252]
[1723295117136,2.88349676,60809.0,60808.0,0.0010252]
[1723295117517,2.87349676,60809.0,60808.0,0.0010252]
[1723295117692,2.88349676,60809.0,60808.0,0.0010252]
[1723295118036,2.75988809,60809.0,60808.0,0.0010252]
[1723295119676,2.74988809,60809.0,60808.0,0.0010252]
[1723295119899,2.75988809,60809.0,60808.0,0.0010252]
[1723295120767,2.55866281,60809.0,60808.0,0.0010252]
[1723295120966,2.75978197,60809.0,60808.0,0.0010252]
[1723295121388,2.92393167,60809.0,60808.0,0.0010252]
[1723295122195,2.75978197,60809.0,60808.0,0.0010252]
[1723295124659,2.55866281,60809.0,60808.0,0.0010252]
[1723295124863,2.75941249,60809.0,60808.0,0.0010252]
[1723295125163,2.55866281,60809.0,60808.0,0.0010252]
[1723295125364,2.75936774,60809.0,60808.0,0.0010252]
[1723295125716,2.29942874,60809.0,60808.0,0.0010252]
[1723295125933,3.15574874,60809.0,60808.0,0.0010252]
[1723295126123,3.16751344,60809.0,60808.0,0.0010252]
[1723295126339,3.00336374,60809.0,60808.0,0.0010252]
[1723295127954,2.92476374,60809.0,60808.0,0.0010252]
[1723295128160,3.00336374,60809.0,60808.0,0.0010252]
[1723295128560,3.00319431,60809.0,60808.0,0.0010252]
[1723295128764,3.16734401,60809.0,60808.0,0.0010252]
[1723295129684,3.15314401,60809.0,60808.0,0.0010252]
[1723295129859,3.23174401,60809.0,60808.0,0.0010252]
[1723295130444,3.20374401,60809.0,60808.0,0.0010252]
[1723295130992,3.23174401,60809.0,60808.0,0.0010252]
[1723295131544,3.21774401,60809.0,60808.0,0.0010252]
[1723295132164,3.20374401,60809.0,60808.0,0.0010252]
[1723295132365,3.21869047,60809.0,60808.0,0.0010252]
[1723295132545,3.14009047,60809.0,60808.0,0.0010252]
[1723295132748,3.21869047,60809.0,60808.0,0.0010252]
[1723295133510,3.23269047,60809.0,60808.0,0.0010252]
[1723295133908,3.23269047,60809.0,60808.0,2e-07]
[1723295134065,2.46365547,60809.0,60808.0,2e-07]
[1723295134267,2.13530577,60809.0,60808.0,2e-07]
[1723295134473,1.69480777,60809.0,60808.0,0.1450002]
[1723295134676,1.62363696,60809.0,60808.0,0.1450002]
[1723295134903,1.55474501,60809.0,60808.0,0.1450002]
[1723295135100,1.47614501,60809.0,60808.0,0.1450002]
[1723295135303,1.54074501,60809.0,60808.0,0.1450002]
[1723295135655,1.29347681,60809.0,60808.0,0.1450002]
[1723295135785,1.28783113,60809.0,60808.0,0.1450002]
[1723295135992,1.3772498,60809.0,60808.0,0.1450002]
[1723295136172,1.35264433,60809.0,60808.0,0.1450002]
[1723295136371,1.33864433,60809.0,60808.0,0.1450002]
[1723295136574,1.35264433,60809.0,60808.0,0.1450002]
[1723295136797,1.36664433,60809.0,60808.0,0.1450002]
[1723295136999,1.35264433,60809.0,60808.0,0.1450002]
[1723295137267,1.3732498,60809.0,60808.0,0.1450002]
[1723295137468,1.34863145,60809.0,60808.0,0.1450002]
[1723295137664,1.35563145,60809.0,60808.0,0.1450002]
[1723295138069,1.28193692,60809.0,60808.0,0.1450002]
[1723295138349,1.33105147,60809.0,60808.0,0.1450002]
[1723295139242,1.48550047,60809.0,60808.0,0.1450002]
[1723295139441,1.49450047,60809.0,60808.0,0.1450002]
[1723295139911,1.48550047,60809.0,60808.0,0.1450002]
[1723295140121,1.43638592,60809.0,60808.0,0.1450002]
[1723295140259,1.51905774,60809.0,60808.0,0.1450002]
[1723295140757,1.44538592,60809.0,60808.0,0.1450002]
[1723295142068,1.51901477,60809.0,60808.0,0.1450002]
[1723295142640,1.44538592,60809.0,60808.0,0.1450002]
[1723295142840,1.54355407,60809.0,60808.0,0.1450002]
[1723295143058,1.51901392,60809.0,60808.0,0.1450002]
[1723295144640,1.44538592,60809.0,60808.0,0.1450002]
[1723295145267,1.54355407,60809.0,60808.0,0.1450002]
[1723295145668,1.44538592,60809.0,60808.0,0.1450002]
[1723295146071,1.49445831,60809.0,60808.0,0.1450002]
[1723295146475,1.44538592,60809.0,60808.0,0.1450002]
[1723295149239,0.016,60809.0,60808.0,0.2236002]
[1723295149354,0.016,60809.0,60808.0,0.22688878]
[1723295149551,0.016,60809.0,60808.0,0.23478858]
[1723295149769,0.016,60809.0,60808.0,0.2315]
[1723295149982,0.016,60809.0,60808.0,0.478178]
[1723295150172,0.016832,60809.0,60808.0,0.60109655]
[1723295150379,0.016832,60809.0,60808.0,0.43664327]
[1723295150875,0.000832,60809.0,60808.0,0.2315]
[1723295151125,0.411954,60809.0,60808.0,0.1529]
[1723295151336,0.413954,60809.0,60808.0,0.1529]
[1723295151483,0.513954,60809.0,60808.0,0.1529]
[1723295152364,0.521954,60809.0,60808.0,0.1450002]
[1723295152650,0.521954,60809.0,60808.0,0.1529]
[1723295152820,0.349505,60809.0,60808.0,0.1450002]
[1723295152977,0.351505,60809.0,60808.0,0.1450002]
[1723295153175,0.515954,60809.0,60808.0,0.1450002]
[1723295154334,0.351505,60809.0,60808.0,0.1450002]
[1723295154830,0.515954,60809.0,60808.0,0.1529]
[1723295155149,0.515954,60809.0,60808.0,0.1450002]
[1723295155330,0.351505,60809.0,60808.0,0.1450002]
[1723295155666,0.515954,60809.0,60808.0,0.1450002]
[1723295156070,0.351505,60809.0,60808.0,0.1450002]
[1723295156515,0.351505,60809.0,60808.0,0.1529]
[1723295157339,0.351505,60809.0,60808.0,0.1450002]
[1723295157750,0.351505,60809.0,60808.0,0.1529]
[1723295157989,0.351505,60809.0,60808.0,0.1450002]
[1723295162645,0.351505,60809.0,60808.0,0.1529]
[1723295162848,1.30976892,60809.0,60808.0,0.1529]
[1723295163049,0.67976892,60809.0,60808.0,0.1529]
[1723295163247,0.67976892,60809.0,60808.0,0.1450002]
[1723295163248,1.39421792,60809.0,60808.0,0.1450002]
[1723295164041,1.39421792,60809.0,60808.0,2e-07]